fUST/lending_fUST_20240226
["ID","MTS","AMOUNT","RATE_DAILY","PERIOD"]
[315222878,1708954234112,-153.0,0.0001937,2]
[315222879,1708954234123,-153.0,0.0001937,2]
[315222880,1708954234132,-153.0,0.0001937,2]
[315222881,1708954234142,-500.0,0.00019451,2]
[315222882,1708954234152,-500.0,0.00019451,2]
[315222883,1708954234162,-2208.07,0.00019452,2]
[315222884,1708954234172,-1136.37,0.00019452,2]
[315222885,1708954234181,-500.0,0.00019452,2]
[315222886,1708954234191,-500.0,0.00019452,2]
[315222887,1708954234201,-500.0,0.00019452,2]
[315222888,1708954234211,-500.0,0.00019452,2]
[315222889,1708954234220,-536.5,0.00019452,2]
[315222890,1708954234230,-500.0,0.00019452,2]
[315222891,1708954234239,-523.35,0.00019452,2]
[315222892,1708954234249,-2401.44,0.00019452,2]
[315222893,1708954234258,-1027.74,0.00019452,2]
[315222894,1708954234268,-643.93,0.00019452,2]
[315222895,1708954234277,-1244.64,0.00019452,2]
[315222896,1708954234286,-978.2,0.00019452,2]
[315222897,1708954234297,-500.0,0.00019452,2]
[315222898,1708954234307,-500.0,0.00019452,2]
[315222899,1708954234318,-500.0,0.00019452,2]
[315222900,1708954234327,-500.0,0.00019452,2]
[315222901,1708954234337,-1398.24,0.00019452,2]
[315222902,1708954234346,-2071.58,0.00019452,2]
[315222903,1708954234357,-1055.32,0.00019452,2]
[315222904,1708954234367,-500.0,0.00019452,2]
[315222905,1708954234377,-243.51868878,0.00019452,2]
[315222906,1708954234387,-500.0,0.00019452,2]
[315222907,1708954234397,-682.7,0.00019452,2]
[315222908,1708954234407,-1835.21,0.00019452,2]
[315222909,1708954234418,-500.0,0.00019452,2]
[315222910,1708954234427,-16081.11,0.00019452,2]
[315222911,1708954234436,-843.23,0.00019452,2]
[315222912,1708954234446,-500.0,0.00019452,2]
[315222913,1708954234455,-500.0,0.00019452,2]
[315222914,1708954234465,-500.0,0.00019452,2]
[315222915,1708954234474,-1741.46,0.00019452,2]
[315222916,1708954234484,-1095.12,0.00019452,2]
[315222917,1708954234494,-500.0,0.00019452,2]
[315222918,1708954234504,-500.0,0.00019452,2]
[315222919,1708954234514,-500.0,0.00019452,2]
[315222920,1708954234524,-541.75,0.00019452,2]
[315222921,1708954234534,-500.0,0.00019452,2]
[315222922,1708954234544,-500.0,0.00019452,2]
[315222923,1708954234554,-1554.88,0.00019452,2]
[315222924,1708954234563,-1138.19,0.00019452,2]
[315222925,1708954234575,-17919.1,0.00019452,2]
[315222926,1708954234585,-914.74,0.00019452,2]
[315222927,1708954234595,-6804.05,0.00019452,2]
[315222928,1708954234605,-9032.8,0.00019452,2]
[315222929,1708954234614,-693.16,0.00019452,2]
[315222930,1708954234624,-1650.04,0.00019452,2]
[315222931,1708954234634,-2084.95,0.00019452,2]
[315222932,1708954234643,-271.81810252,0.00019452,2]
[315222933,1708954234652,-500.0,0.00019452,2]
[315222934,1708954234663,-3554.66,0.00019452,2]
[315222935,1708954234672,-1327.85,0.00019452,2]
[315222936,1708954234684,-500.0,0.00019452,2]
[315222937,1708954234694,-500.0,0.00019452,2]
[315222938,1708954234703,-500.0,0.00019452,2]
[315222939,1708954234714,-500.0,0.00019452,2]
[315222940,1708954234724,-500.0,0.00019452,2]
[315222941,1708954234733,-3239.81,0.00019452,2]
[315222942,1708954234743,-500.0,0.00019452,2]
[315222943,1708954234752,-2166.65,0.00019452,2]
[315222944,1708954234762,-500.0,0.00019452,2]
[315222945,1708954234772,-1827.75,0.00019452,2]
[315222946,1708954234781,-1666.06,0.00019452,2]
[315222947,1708954234791,-1840.28,0.00019452,2]
[315222948,1708954234800,-503.7,0.00019452,2]
[315222949,1708954234810,-500.0,0.00019452,2]
[315222950,1708954234820,-289.22290095,0.00019452,2]
[315222951,1708954234829,-211.37925262,0.0001955,2]
[315222952,1708954234839,-166.666666,0.00019627,2]
[315222953,1708954234848,-173.80944232,0.00019725,2]
[315222954,1708954234859,-2208.07,0.00019726,2]
[315222955,1708954234869,-1136.37,0.00019726,2]
[315222956,1708954234878,-500.0,0.00019726,2]
[315222957,1708954234887,-500.0,0.00019726,2]
[315222958,1708954234897,-500.0,0.00019726,2]
[315222959,1708954234906,-500.0,0.00019726,2]
[315222960,1708954234915,-536.5,0.00019726,2]
[315222961,1708954234925,-500.0,0.00019726,2]
[315222962,1708954235053,-523.35,0.00019726,2]
[315222963,1708954235062,-2401.44,0.00019726,2]
[315222964,1708954235073,-1027.74,0.00019726,2]
[315222965,1708954235083,-643.93,0.00019726,2]
[315222966,1708954235092,-1244.64,0.00019726,2]
[315222967,1708954235102,-978.2,0.00019726,2]
[315222968,1708954235112,-500.0,0.00019726,2]
[315222969,1708954235121,-512.42575827,0.00019726,2]
[315222970,1708954235130,-500.0,0.00019726,2]
[315222971,1708954235139,-500.0,0.00019726,2]
[315222972,1708954235148,-1398.24,0.00019726,2]
[315222973,1708954235157,-2071.58,0.00019726,2]
[315222974,1708954235167,-1055.32,0.00019726,2]
[315222975,1708954235178,-500.0,0.00019726,2]
[315222976,1708954235187,-369.66360784,0.00019726,2]
[315222977,1708954235196,-682.7,0.00019726,2]
[315222978,1708954235205,-1835.21,0.00019726,2]
[315222979,1708954235215,-500.0,0.00019726,2]
[315222980,1708954235224,-16081.11,0.00019726,2]
[315222981,1708954235234,-843.23,0.00019726,2]
[315222982,1708954235243,-393.43007268,0.00019726,2]
[315222983,1708954235253,-500.0,0.00019726,2]
[315222984,1708954235262,-415.46308815,0.00019726,2]
[315222985,1708954235272,-1741.46,0.00019726,2]
[315222986,1708954235281,-500.0,0.00019726,2]
[315222987,1708954235291,-1095.12,0.00019726,2]
[315222988,1708954235301,-500.0,0.00019726,2]
[315222989,1708954235311,-541.75,0.00019726,2]
[315222990,1708954235322,-500.0,0.00019726,2]
[315222991,1708954235332,-1554.88,0.00019726,2]
[315222992,1708954235342,-1138.19,0.00019726,2]
[315222993,1708954235352,-17919.1,0.00019726,2]
[315222994,1708954235362,-914.74,0.00019726,2]
[315222995,1708954235371,-6804.05,0.00019726,2]
[315222996,1708954235381,-9032.8,0.00019726,2]
[315222997,1708954235391,-693.16,0.00019726,2]
[315222998,1708954235401,-1650.04,0.00019726,2]
[315222999,1708954235411,-2084.95,0.00019726,2]
[315223000,1708954235421,-500.0,0.00019726,2]
[315223001,1708954235430,-3554.66,0.00019726,2]
[315223002,1708954235440,-1327.85,0.00019726,2]
[315223003,1708954235449,-500.0,0.00019726,2]
[315223004,1708954235459,-500.0,0.00019726,2]
[315223005,1708954235469,-500.0,0.00019726,2]
[315223006,1708954235479,-205.1715328,0.00019726,2]
[315223007,1708954235488,-3239.81,0.00019726,2]
[315223008,1708954235498,-2166.65,0.00019726,2]
[315223009,1708954235507,-500.0,0.00019726,2]
[315223010,1708954235517,-1827.75,0.00019726,2]
[315223011,1708954235526,-1666.06,0.00019726,2]
[315223012,1708954235536,-1840.28,0.00019726,2]
[315223013,1708954235545,-503.7,0.00019726,2]
[315223014,1708954235555,-19711.31174436,0.00019728,2]
[315223015,1708954235565,-211.37925262,0.00019786,2]
[315223016,1708954235578,-3769.86071559,0.000199,2]
[315223017,1708954235588,-91721.32019447,0.0002,4]
[315223018,1708954235598,-500.0,0.0002,7]
[315223019,1708954235608,-500.0,0.0002,7]
[315223020,1708954235618,-500.0,0.0002,7]
[315223021,1708954235628,-299.08,0.0002,7]
[315223022,1708954235638,-2208.07,0.0002,2]
[315223023,1708954235646,-1136.37,0.0002,2]
[315223024,1708954235656,-500.0,0.0002,2]
[315223025,1708954235666,-500.0,0.0002,2]
[315223026,1708954235680,-500.0,0.0002,2]
[315223027,1708954235690,-536.5,0.0002,2]
[315223028,1708954235700,-500.0,0.0002,2]
[315223029,1708954235710,-523.35,0.0002,2]
[315223030,1708954235723,-2401.44,0.0002,2]
[315223031,1708954235733,-1027.74,0.0002,2]
[315223032,1708954235743,-643.93,0.0002,2]
[315223033,1708954235755,-1244.64,0.0002,2]
[315223034,1708954235765,-978.2,0.0002,2]
[315223035,1708954235775,-500.0,0.0002,2]
[315223036,1708954235785,-500.0,0.0002,2]
[315223037,1708954235795,-500.0,0.0002,2]
[315223038,1708954235805,-1398.24,0.0002,2]
[315223039,1708954235815,-2071.58,0.0002,2]
[315223040,1708954235832,-1055.32,0.0002,2]
[315223041,1708954235843,-500.0,0.0002,2]
[315223042,1708954235852,-682.7,0.0002,2]
[315223043,1708954235862,-1835.21,0.0002,2]
[315223044,1708954235872,-500.0,0.0002,2]
[315223045,1708954235882,-16081.11,0.0002,2]
[315223046,1708954235893,-843.23,0.0002,2]
[315223047,1708954235903,-502.78381319,0.0002,2]
[315223048,1708954235913,-1741.46,0.0002,2]
[315223049,1708954235923,-500.0,0.0002,2]
[315223050,1708954235933,-1095.12,0.0002,2]
[315223051,1708954235943,-500.0,0.0002,2]
[315223052,1708954235953,-541.75,0.0002,2]
[315223053,1708954235964,-500.0,0.0002,2]
[315223054,1708954235973,-1554.88,0.0002,2]
[315223055,1708954235982,-1138.19,0.0002,2]
[315223056,1708954235992,-16954.7196683,0.0002,2]
[315223057,1708954236008,-269.24912565,0.0002,2]
[315223090,1708954238632,-22325.27,0.00019442,3]
[315223093,1708954238642,-695.13120605,0.0002,2]
[315223094,1708954238651,-914.74,0.0002,2]
[315223096,1708954238661,-6804.05,0.0002,2]
[315223098,1708954238670,-9032.8,0.0002,2]
[315223100,1708954238681,-693.16,0.0002,2]
[315223101,1708954238690,-1650.04,0.0002,2]
[315223104,1708954238700,-2084.95,0.0002,2]
[315223106,1708954238709,-500.0,0.0002,2]
[315223108,1708954238718,-3554.66,0.0002,2]
[315223110,1708954238727,-1327.85,0.0002,2]
[315223112,1708954238737,-500.0,0.0002,2]
[315223114,1708954238746,-500.0,0.0002,2]
[315223116,1708954238758,-3239.81,0.0002,2]
[315223118,1708954238767,-2166.65,0.0002,2]
[315223120,1708954238776,-500.0,0.0002,2]
[315223122,1708954238785,-1827.75,0.0002,2]
[315223124,1708954238794,-1666.06,0.0002,2]
[315223126,1708954238803,-1840.28,0.0002,2]
[315223128,1708954238812,-503.7,0.0002,2]
[315223130,1708954238822,-3769.86071559,0.00020011,2]
[315223132,1708954238831,-211.37925262,0.00020022,2]
[315223134,1708954238841,-166.666666,0.00020076,2]
[315223136,1708954238851,-200.49719518,0.00020077,2]
[315223138,1708954238860,-250140.18566022,0.00020078,2]
[315223140,1708954238868,-3769.86071559,0.00020122,2]
[315223142,1708954238878,-300.0,0.00020151,2]
[315223144,1708954238886,-286.74485892,0.00020169,2]
[315223146,1708954238896,-2348.72149785,0.00020169,2]
[315223148,1708954238905,-639.82470976,0.00020175,2]
[315223150,1708954238936,-677.39959869,0.00020176,2]
[315223151,1708954238945,-1718.4169057,0.00020177,2]
[315223153,1708954238954,-19434.96591135,0.00020178,2]
[315223155,1708954238963,-5000.0,0.00020178,2]
[315223157,1708954238972,-28835.63300729,0.00020178,2]
[315223158,1708954238981,-8141.87489211,0.00020178,2]
[315223160,1708954238990,-16975.27247301,0.00020178,2]
[315223162,1708954238999,-5000.0,0.00020178,2]
[315223163,1708954239008,-9340.92245067,0.00020178,2]
[315223164,1708954239018,-194.438424,0.00020178,2]
[315223165,1708954239027,-194.438424,0.00020178,2]
[315223166,1708954239036,-50000.0,0.00020178,2]
[315223167,1708954239045,-23829.75578261,0.00020178,2]
[315223210,1708954243793,-500.0,0.00019178,2]
[315223211,1708954243803,-501.16229543,0.00019178,2]
[315223212,1708954243812,-1726.32,0.00019178,2]
[315223213,1708954243821,-514.99472332,0.00019452,2]
[315223214,1708954243832,-1726.32,0.00019452,2]
[315223215,1708954243841,-1726.32,0.00019726,2]
[315223216,1708954243850,-1726.32,0.0002,2]
[315223217,1708954243859,-27451.33267782,0.00020178,2]
[315223218,1708954243869,-151.0,0.00020178,2]
[315223219,1708954243878,-153.0,0.00020192,2]
[315223220,1708954243887,-153.0,0.00020192,2]
[315223221,1708954243896,-153.0,0.00020192,2]
[315223222,1708954243905,-153.0,0.00020192,2]
[315223223,1708954243915,-153.0,0.00020192,2]
[315223224,1708954243924,-153.0,0.00020192,2]
[315223225,1708954243933,-153.0,0.00020192,2]
[315223226,1708954243942,-3769.86071559,0.00020233,2]
[315223227,1708954243951,-2208.07,0.00020273,2]
[315223228,1708954243960,-1136.37,0.00020273,2]
[315223229,1708954243969,-500.0,0.00020273,2]
[315223230,1708954243978,-500.0,0.00020273,2]
[315223231,1708954243987,-500.0,0.00020273,2]
[315223232,1708954243996,-536.5,0.00020273,2]
[315223233,1708954244006,-500.0,0.00020273,2]
[315223234,1708954244015,-523.35,0.00020273,2]
[315223235,1708954244023,-2401.44,0.00020273,2]
[315223236,1708954244033,-1027.74,0.00020273,2]
[315223237,1708954244042,-643.93,0.00020273,2]
[315223238,1708954244051,-1244.64,0.00020273,2]
[315223239,1708954244060,-978.2,0.00020273,2]
[315223240,1708954244070,-500.0,0.00020273,2]
[315223241,1708954244080,-500.0,0.00020273,2]
[315223242,1708954244089,-500.0,0.00020273,2]
[315223243,1708954244098,-1398.24,0.00020273,2]
[315223244,1708954244107,-1055.32,0.00020273,2]
[315223245,1708954244116,-500.0,0.00020273,2]
[315223246,1708954244125,-682.7,0.00020273,2]
[315223247,1708954244134,-1835.21,0.00020273,2]
[315223248,1708954244143,-500.0,0.00020273,2]
[315223249,1708954244152,-16081.11,0.00020273,2]
[315223250,1708954244162,-843.23,0.00020273,2]
[315223251,1708954244170,-1741.46,0.00020273,2]
[315223252,1708954244180,-500.0,0.00020273,2]
[315223253,1708954244188,-1095.12,0.00020273,2]
[315223254,1708954244197,-500.0,0.00020273,2]
[315223255,1708954244207,-541.75,0.00020273,2]
[315223256,1708954244216,-500.0,0.00020273,2]
[315223257,1708954244226,-1554.88,0.00020273,2]
[315223258,1708954244235,-1138.19,0.00020273,2]
[315223259,1708954244244,-17919.1,0.00020273,2]
[315223260,1708954244253,-914.74,0.00020273,2]
[315223261,1708954244263,-6804.05,0.00020273,2]
[315223262,1708954244272,-9032.8,0.00020273,2]
[315223263,1708954244281,-693.16,0.00020273,2]
[315223264,1708954244289,-1650.04,0.00020273,2]
[315223265,1708954244298,-2084.95,0.00020273,2]
[315223266,1708954244308,-500.0,0.00020273,2]
[315223267,1708954244317,-3554.66,0.00020273,2]
[315223268,1708954244327,-1327.85,0.00020273,2]
[315223269,1708954244337,-500.0,0.00020273,2]
[315223270,1708954244346,-500.0,0.00020273,2]
[315223271,1708954244355,-3239.81,0.00020273,2]
[315223272,1708954244364,-2166.65,0.00020273,2]
[315223273,1708954244373,-500.0,0.00020273,2]
[315223274,1708954244383,-1827.75,0.00020273,2]
[315223275,1708954244392,-1666.06,0.00020273,2]
[315223276,1708954244401,-1840.28,0.00020273,2]
[315223277,1708954244410,-503.7,0.00020273,2]
[315223278,1708954244420,-1726.32,0.00020273,2]
[315223279,1708954244430,-300.0,0.00020291,2]
[315223280,1708954244439,-1212.00001212,0.00020328,2]
[315223281,1708954244449,-3769.86071559,0.00020344,2]
[315223282,1708954244459,-6639.46711033,0.00020347,2]
[315223283,1708954244468,-620.98371688,0.00020352,2]
[315223284,1708954244477,-580.0,0.000204,2]
[315223285,1708954244487,-300.0,0.00020432,2]
[315223286,1708954244496,-3769.86071559,0.00020456,2]
[315223287,1708954244505,-300.0,0.000205,9]
[315223288,1708954244514,-166.666666,0.00020524,2]
[315223289,1708954244524,-155.2870316,0.00020545,2]
[315223290,1708954244533,-399.333294,0.00020545,2]
[315223291,1708954244542,-399.333294,0.00020546,2]
[315223292,1708954244552,-200.0,0.00020547,2]
[315223293,1708954244561,-2208.07,0.00020547,2]
[315223294,1708954244570,-1136.37,0.00020547,2]
[315223295,1708954244579,-500.0,0.00020547,2]
[315223296,1708954244591,-500.0,0.00020547,2]
[315223297,1708954244600,-500.0,0.00020547,2]
[315223298,1708954244610,-536.5,0.00020547,2]
[315223299,1708954244619,-500.0,0.00020547,2]
[315223300,1708954244628,-523.35,0.00020547,2]
[315223301,1708954244637,-2401.44,0.00020547,2]
[315223302,1708954244646,-1027.74,0.00020547,2]
[315223303,1708954244655,-643.93,0.00020547,2]
[315223304,1708954244665,-1244.64,0.00020547,2]
[315223305,1708954244676,-978.2,0.00020547,2]
[315223306,1708954244686,-194.438424,0.00020547,2]
[315223307,1708954244695,-500.0,0.00020547,2]
[315223308,1708954244704,-194.438424,0.00020547,2]
[315223309,1708954244715,-400.74153941,0.00020547,2]
[315223310,1708954244724,-500.0,0.00020547,2]
[315223311,1708954244732,-1398.24,0.00020547,2]
[315223312,1708954244742,-1055.32,0.00020547,2]
[315223313,1708954244752,-151.0,0.00020547,2]
[315223314,1708954244868,-500.0,0.00020547,2]
[315223315,1708954244877,-682.7,0.00020547,2]
[315223316,1708954244886,-1835.21,0.00020547,2]
[315223317,1708954244895,-500.0,0.00020547,2]
[315223318,1708954244905,-16081.11,0.00020547,2]
[315223319,1708954244914,-843.23,0.00020547,2]
[315223320,1708954244923,-1741.46,0.00020547,2]
[315223321,1708954244932,-1095.12,0.00020547,2]
[315223322,1708954244941,-500.0,0.00020547,2]
[315223323,1708954244951,-500.0,0.00020547,2]
[315223324,1708954244960,-541.75,0.00020547,2]
[315223325,1708954244970,-274.75576824,0.00020547,2]
[315223326,1708954244984,-225.24423176,0.00020547,2]
[315223327,1708954244993,-171.60799961,0.00020547,2]
[315228922,1708955160227,10000.0,0.00022,30]
[315228955,1708955431886,-616.3095412,0.00017083,2]
[315228957,1708955431898,-1102.46174275,0.00017083,2]
[315228959,1708955431908,-2761.98696891,0.00017084,2]
[315229264,1708955437896,-4699.22949954,0.00017082,2]
[315229266,1708955437906,-22138.01303109,0.00017084,2]
[315229268,1708955437915,-300.77936664,0.00017587,2]
[315229270,1708955437924,-273.88290382,0.00017587,2]
[315229272,1708955437933,-2612.17546895,0.00017588,2]
[315229273,1708955437942,-251.470284,0.0001775,2]
[315229274,1708955437951,-456.23932926,0.000189,2]
[315229275,1708955437959,-325.95846595,0.00019178,2]
[315229276,1708955437968,-500.0,0.00019178,2]
[315229277,1708955437977,-500.0,0.00019178,2]
[315229278,1708955437986,-500.0,0.00019178,2]
[315229279,1708955437995,-500.0,0.00019178,2]
[315229280,1708955438005,-500.0,0.00019178,2]
[315229281,1708955438017,-763.72,0.00019178,2]
[315229282,1708955438026,-500.0,0.00019178,2]
[315229283,1708955438035,-314.66544814,0.00019178,2]
[315229284,1708955438046,-500.0,0.00019178,2]
[315229285,1708955438056,-500.0,0.00019178,2]
[315229286,1708955438066,-175.74809842,0.00019178,2]
[315229287,1708955438075,-500.0,0.00019178,2]
[315229288,1708955438084,-500.0,0.00019178,2]
[315229289,1708955438093,-500.0,0.00019178,2]
[315229290,1708955438103,-500.0,0.00019178,2]
[315229291,1708955438112,-1048.68,0.00019178,2]
[315229293,1708955438121,-500.0,0.00019178,2]
[315229294,1708955438130,-500.0,0.00019178,2]
[315229296,1708955438139,-786.43,0.00019178,2]
[315229299,1708955438149,-791.49,0.00019178,2]
[315229300,1708955438158,-500.0,0.00019178,2]
[315229302,1708955438168,-500.0,0.00019178,2]
[315229304,1708955438176,-632.42,0.00019178,2]
[315229305,1708955438185,-924.25,0.00019178,2]
[315229306,1708955438195,-500.0,0.00019178,2]
[315229308,1708955438204,-500.0,0.00019178,2]
[315229310,1708955438213,-500.0,0.00019178,2]
[315229312,1708955438223,-500.0,0.00019178,2]
[315229314,1708955438232,-500.0,0.00019178,2]
[315229316,1708955438241,-500.0,0.00019178,2]
[315229317,1708955438250,-1737.46,0.00019178,2]
[315229319,1708955438259,-3003.21,0.00019178,2]
[315229321,1708955438268,-598.47,0.00019178,2]
[315229323,1708955438277,-535.65373426,0.00019178,2]
[315229324,1708955438286,-500.0,0.00019178,2]
[315229325,1708955438295,-1118.49,0.00019178,2]
[315229326,1708955438303,-500.0,0.00019178,2]
[315229327,1708955438312,-1366.67,0.00019178,2]
[315229328,1708955438321,-1533.56,0.00019178,2]
[315229329,1708955438330,-1388.38,0.00019178,2]
[315229330,1708955438339,-500.0,0.00019178,2]
[315229331,1708955438350,-500.0,0.00019178,2]
[315229332,1708955438359,-500.0,0.00019178,2]
[315229333,1708955438369,-500.0,0.00019178,2]
[315229334,1708955438378,-500.0,0.00019178,2]
[315229335,1708955438387,-406.99210958,0.00019178,2]
[315229336,1708955438396,-507.80796114,0.00019178,2]
[315229337,1708955438405,-500.0,0.00019178,2]
[315229338,1708955438414,-500.0,0.00019178,2]
[315229339,1708955438423,-258.37608365,0.00019178,2]
[315229340,1708955438432,-500.0,0.00019178,2]
[315229341,1708955438442,-532.44958186,0.00019178,2]
[315229342,1708955438451,-500.0,0.00019178,2]
[315229343,1708955438460,-14214.92,0.00019178,2]
[315229344,1708955438469,-1223.79,0.00019178,2]
[315229345,1708955438478,-5793.06,0.00019178,2]
[315229346,1708955438487,-1801.08,0.00019178,2]
[315229347,1708955438496,-1523.12,0.00019178,2]
[315229348,1708955438505,-1516.49,0.00019178,2]
[315229349,1708955438514,-770.81,0.00019178,2]
[315229350,1708955438523,-500.0,0.00019178,2]
[315229351,1708955438533,-512.02,0.00019178,2]
[315229352,1708955438542,-980.71,0.00019178,2]
[315229353,1708955438551,-2699.84,0.00019178,2]
[315229354,1708955438561,-1805.54,0.00019178,2]
[315229355,1708955438570,-1376.4,0.00019178,2]
[315229356,1708955438579,-156.1005894,0.00019178,2]
[315229357,1708955438588,-1306.09,0.00019178,2]
[315229358,1708955438599,-12060.84,0.00019178,2]
[315229359,1708955438609,-821.34,0.00019178,2]
[315229360,1708955438618,-500.0,0.00019178,2]
[315229361,1708955438628,-500.0,0.00019178,2]
[315229362,1708955438637,-500.0,0.00019178,2]
[315229363,1708955438647,-7527.33,0.00019178,2]
[315229364,1708955438656,-901.07,0.00019178,2]
[315229365,1708955438665,-165.821467,0.00019178,2]
[315229366,1708955438674,-166.666666,0.00019178,2]
[315229367,1708955438684,-211.37925262,0.00019352,2]
[315229368,1708955438693,-153.0,0.0001937,2]
[315229369,1708955438702,-153.0,0.0001937,2]
[315229370,1708955438712,-500.0,0.00019452,2]
[315229371,1708955438721,-500.0,0.00019452,2]
[315229372,1708955438731,-414.76268041,0.00019452,2]
[315229373,1708955438740,-763.72,0.00019452,2]
[315229374,1708955438749,-500.0,0.00019452,2]
[315229375,1708955438758,-500.0,0.00019452,2]
[315229376,1708955438767,-1048.68,0.00019452,2]
[315229377,1708955438777,-324.92942874,0.00019452,2]
[315229378,1708955438786,-500.0,0.00019452,2]
[315229379,1708955438795,-786.43,0.00019452,2]
[315229380,1708955438805,-791.49,0.00019452,2]
[315229381,1708955438814,-500.0,0.00019452,2]
[315229382,1708955438823,-632.42,0.00019452,2]
[315229383,1708955438833,-924.25,0.00019452,2]
[315229384,1708955438842,-500.0,0.00019452,2]
[315229385,1708955438853,-500.0,0.00019452,2]
[315229386,1708955438862,-500.0,0.00019452,2]
[315229387,1708955438871,-500.0,0.00019452,2]
[315229388,1708955438880,-500.0,0.00019452,2]
[315229389,1708955438891,-1737.46,0.00019452,2]
[315229390,1708955438900,-3003.21,0.00019452,2]
[315229391,1708955438910,-598.47,0.00019452,2]
[315229392,1708955438919,-500.0,0.00019452,2]
[315229393,1708955438928,-1118.49,0.00019452,2]
[315229394,1708955438937,-533.98724685,0.00019452,2]
[315229395,1708955438946,-1366.67,0.00019452,2]
[315229396,1708955438956,-1533.56,0.00019452,2]
[315229397,1708955438965,-1388.38,0.00019452,2]
[315229398,1708955438974,-500.0,0.00019452,2]
[315229399,1708955438983,-500.0,0.00019452,2]
[315229400,1708955438993,-500.0,0.00019452,2]
[315229401,1708955439002,-356.05453121,0.00019452,2]
[315229402,1708955439011,-500.0,0.00019452,2]
[315229403,1708955439020,-500.0,0.00019452,2]
[315229404,1708955439029,-609.4828341,0.00019452,2]
[315229405,1708955439038,-14214.92,0.00019452,2]
[315229406,1708955439050,-1223.79,0.00019452,2]
[315229407,1708955439060,-5793.06,0.00019452,2]
[315229408,1708955439069,-1801.08,0.00019452,2]
[315229409,1708955439078,-1523.12,0.00019452,2]
[315229410,1708955439088,-1516.49,0.00019452,2]
[315229411,1708955439098,-770.81,0.00019452,2]
[315229412,1708955439107,-500.0,0.00019452,2]
[315229413,1708955439116,-512.02,0.00019452,2]
[315229414,1708955439126,-980.71,0.00019452,2]
[315229415,1708955439135,-2699.84,0.00019452,2]
[315229416,1708955439144,-1805.54,0.00019452,2]
[315229417,1708955439153,-1376.4,0.00019452,2]
[315229418,1708955439162,-1306.09,0.00019452,2]
[315229419,1708955439171,-12060.84,0.00019452,2]
[315229420,1708955439181,-821.34,0.00019452,2]
[315229421,1708955439190,-500.0,0.00019452,2]
[315229422,1708955439200,-555.51446658,0.00019452,2]
[315229423,1708955439209,-473.46181941,0.00019452,2]
[315229424,1708955439219,-7527.33,0.00019452,2]
[315229425,1708955439228,-901.07,0.00019452,2]
[315229426,1708955439237,-166.666666,0.00019627,2]
[315229427,1708955439247,-500.0,0.00019726,2]
[315229428,1708955439256,-500.0,0.00019726,2]
[315229429,1708955439265,-763.72,0.00019726,2]
[315229430,1708955439274,-500.0,0.00019726,2]
[315229431,1708955439283,-500.0,0.00019726,2]
[315229432,1708955439292,-1048.68,0.00019726,2]
[315229433,1708955439301,-151.71358935,0.00019726,2]
[315229434,1708955439310,-786.43,0.00019726,2]
[315229435,1708955439319,-791.49,0.00019726,2]
[315229436,1708955439328,-540.43198909,0.00019726,2]